bitfinex-derivatives/quotes_ETHF0:USTF0_20251116
["timestamp","ask_amount","ask_price","bid_price","bid_amount"]
[1763281607187,3.4444,3212.4,3212.3,0.2426]
[1763281608988,3.2078,3212.4,3212.3,0.2426]
[1763281610489,0.2366,3212.4,3212.3,0.2426]
[1763281610790,0.24419351,3212.6,3212.5,0.379]
[1763281611289,0.00759351,3212.6,3212.5,0.379]
[1763281611886,0.24419351,3212.6,3212.5,0.1364]
[1763281612086,0.24419351,3212.6,3212.5,0.379]
[1763281612284,0.00759351,3212.6,3212.5,0.379]
[1763281612789,0.24419351,3212.6,3212.3,1.11609356]
[1763281612991,0.24419351,3212.6,3212.5,0.379]
[1763281615384,0.2366,3212.4,3212.3,1.35869356]
[1763281616393,0.2366,3212.4,3212.3,0.2426]
[1763281617880,0.00759351,3212.6,3212.5,0.379]
[1763281618088,0.00466803,3212.6,3212.5,0.379]
[1763281618291,0.83926807,3213.3,3213.1,0.2426]
[1763281618587,4.29306807,3213.7,3213.6,0.2334]
[1763281619197,3.45697307,3213.7,3213.6,0.2334]
[1763281619693,0.246,3213.4,3213.3,0.23806803]
[1763281619892,0.1975,3213.4,3213.3,0.23806803]
[1763281620802,4.05024114,3213.7,3213.3,0.23806803]
[1763281620991,3.40847307,3213.7,3213.6,0.2334]
[1763281623099,0.00317307,3213.7,3213.6,3.4412]
[1763281625296,0.20067307,3213.7,3213.6,3.4412]
[1763281627901,0.20067307,3213.7,3213.6,0.2334]
[1763281629100,0.1975,3213.6,3213.5,0.1482]
[1763281629306,0.00317307,3213.7,3213.6,0.2334]
[1763281630495,0.1975,3213.6,3213.5,0.1482]
[1763281630699,0.1975,3213.6,3213.5,0.3816]
[1763281631007,0.00317307,3213.7,3213.6,0.2334]
[1763281633504,0.20067307,3213.7,3213.6,0.2334]
[1763281638114,0.00317307,3213.7,3213.6,0.2334]
[1763281639915,0.20047307,3213.7,3213.6,0.2334]
[1763281642416,0.00317307,3213.7,3213.6,0.2334]
[1763281642618,0.20196803,3214.0,3213.9,0.2282]
[1763281643113,0.20196803,3214.0,3213.5,0.1482]
[1763281643315,0.1973,3213.6,3213.5,0.1482]
[1763281643520,0.19952626,3213.6,3213.5,0.37961744]
[1763281646416,0.19952626,3213.6,3213.5,0.00321744]
[1763281646722,0.19952626,3213.6,3213.5,0.15131744]
[1763281647021,0.19952626,3213.6,3213.5,0.37951744]
[1763281648324,1.03546069,3213.6,3213.5,0.37951744]
[1763281651924,0.1943,3213.4,3213.3,0.00466803]
[1763281652632,0.1943,3213.0,3212.9,3.2078]
[1763281652820,0.83963745,3213.0,3212.9,3.2078]
[1763281653021,0.83963745,3213.0,3212.9,0.00233509]
[1763281653729,1.1195166,3213.1,3212.9,0.00233509]
[1763281654120,1.67800117,3213.1,3212.6,0.00466803]
[1763281654329,0.8386818,3212.8,3212.6,0.00466803]
[1763281654521,0.8386818,3212.7,3212.6,0.00466803]
[1763281655124,0.8386818,3212.7,3212.6,0.00776489]
[1763281655730,0.83816744,3212.7,3212.6,0.00776489]
[1763281656631,0.83816744,3212.7,3212.1,3.2078]
[1763281656828,0.83816744,3212.6,3212.1,3.2078]
[1763281657027,0.83816744,3212.5,3212.1,3.2078]
[1763281657228,1.1182424,3212.7,3212.1,3.2078]
[1763281657229,0.83816744,3212.6,3212.1,3.2078]
[1763281657628,0.83816744,3212.6,3212.1,3.21124305]
[1763281659135,0.83816744,3212.7,3212.1,3.21124305]
[1763281661334,4.04596744,3212.8,3212.1,3.21124305]
[1763281662038,6.53896744,3212.8,3212.1,3.21124305]
[1763281662236,3.2078,3212.6,3212.1,0.00344305]
[1763281662934,3.2078,3212.6,3212.1,0.24024305]
[1763281663335,3.2078,3212.6,3212.5,0.1399]
[1763281664038,3.2078,3212.6,3212.1,0.24024305]
[1763281665631,15.05,3212.5,3212.1,0.24024305]
[1763281666037,15.05,3212.5,3212.1,0.00344305]
[1763281666838,15.05,3212.5,3212.1,0.24024305]
[1763281667632,15.05,3212.5,3212.1,0.00344305]
[1763281667840,4.04596744,3212.6,3212.1,0.00344305]
[1763281668040,15.05,3212.5,3212.1,0.00344305]
[1763281668442,15.05,3212.5,3212.1,0.24024305]
[1763281669541,15.05,3212.5,3212.1,0.00344305]
[1763281672340,15.88816744,3212.5,3212.1,0.00344305]
[1763281674242,0.83816744,3212.4,3212.1,0.00344305]
[1763281674840,3.2078,3212.2,3212.1,0.00344305]
[1763281675041,6.8190424,3212.2,3211.5,0.1399]
[1763281675245,3.2078,3211.6,3211.0,3.3477]
[1763281675438,15.051,3211.5,3211.0,3.3477]
[1763281675932,15.051,3211.5,3211.0,3.34989605]
[1763281676343,15.051,3211.5,3211.4,0.2368]
[1763281678944,15.051,3211.5,3211.0,0.14209605]
[1763281680649,15.051,3211.5,3211.0,0.38799605]
[1763281682346,15.88657464,3211.5,3211.0,0.38799605]
[1763281683047,15.88657464,3211.5,3211.0,0.14209605]
[1763281683841,0.83557464,3211.4,3211.0,0.14209605]
[1763281685348,0.83557464,3211.4,3211.0,0.38799605]
[1763281686850,0.83557464,3211.4,3211.0,0.14209605]
[1763281687754,0.83557464,3211.4,3211.0,0.38799605]
[1763281690465,0.83557464,3211.4,3211.3,0.2459]
[1763281690669,10.352,3211.5,3211.0,0.14209605]
[1763281690868,4.04804267,3211.6,3211.5,0.3839]
[1763281691161,3.21246803,3211.6,3211.5,0.3839]
[1763281693172,3.21246803,3211.6,3211.5,0.138]
[1763281693465,0.00466803,3211.6,3211.5,0.138]
[1763281694270,0.00466803,3211.6,3211.5,0.3839]
[1763281706275,0.83740485,3211.9,3211.8,0.2342]
[1763281709676,0.83740485,3211.9,3211.5,0.138]
[1763281709883,0.83740485,3211.9,3211.8,0.247]
[1763281718377,4.3260424,3212.0,3211.9,0.247]
[1763281720186,4.3260424,3212.0,3211.5,0.138]
[1763281720384,0.84024247,3211.8,3211.7,0.247]
[1763281721581,0.84024247,3211.8,3211.5,0.385]
[1763281724184,16.73000117,3212.1,3211.5,0.138]
[1763281724185,4.3260424,3211.6,3211.5,0.138]
[1763281724586,3.2078,3211.6,3211.0,0.38909605]
[1763281724790,0.84069507,3211.3,3211.0,0.38909605]
[1763281725090,0.84069507,3211.2,3211.1,0.247]
[1763281725480,0.84426835,3211.3,3211.1,0.247]
[1763281727285,0.84069507,3211.2,3211.0,0.14209605]
[1763281727492,0.84069507,3211.2,3211.0,0.38909605]
[1763281727790,0.84069507,3211.2,3211.1,0.247]
[1763281729389,15.89426835,3211.3,3211.1,0.247]
[1763281729890,15.89426835,3211.3,3211.0,0.14209605]
[1763281730187,15.89426835,3211.3,3211.0,0.38909605]
[1763281731488,15.89426835,3211.3,3211.2,0.247]
[1763281731691,0.84426835,3211.3,3211.2,0.247]
[1763281731877,0.84426835,3211.3,3211.0,0.14209605]
[1763281732083,0.84426835,3211.3,3211.0,0.38909605]
[1763281732988,0.84426835,3211.3,3211.2,0.247]
[1763281733390,0.00357328,3211.3,3211.2,0.247]
[1763281741294,0.00357328,3211.3,3211.0,0.38669605]
[1763281741897,15.05357328,3211.3,3211.0,0.38669605]
[1763281742086,15.89426835,3211.3,3211.0,0.14209605]
[1763281743493,15.89426835,3211.3,3211.0,0.38669605]
[1763281744095,15.89426835,3211.3,3211.0,0.14209605]
[1763281744898,15.89426835,3211.3,3211.0,0.38669605]
[1763281745295,0.84426835,3211.3,3211.2,0.2446]
[1763281745499,0.00357328,3211.3,3211.2,0.2446]
[1763281746594,0.00357328,3211.3,3211.0,0.14209605]
[1763281746801,0.00357328,3211.3,3211.2,0.2446]
[1763281748798,0.84426835,3211.3,3211.0,0.38669605]
[1763281749900,0.84069507,3211.2,3211.0,0.14209605]
[1763281750198,15.049,3211.1,3211.0,0.14209605]
[1763281750408,15.88969507,3211.1,3211.0,0.14209605]
[1763281751798,15.88969507,3211.1,3211.0,0.14389605]
[1763281752007,15.049,3211.1,3211.0,0.00219605]
[1763281752202,16.16992676,3211.1,3211.0,0.00219605]
[1763281752501,19.37772676,3211.1,3211.0,0.00219605]
[1763281753700,19.93480117,3211.1,3210.9,0.00466803]
[1763281754411,1.11876677,3211.0,3210.9,0.00466803]
[1763281754607,1.11876677,3211.0,3210.9,0.00854125]
[1763281756010,1.67800117,3211.0,3210.9,0.00854125]
[1763281756203,19.93480117,3211.1,3211.0,0.1443]
[1763281756610,4.88580117,3211.1,3211.0,0.1443]
[1763281756910,18.67080117,3211.1,3211.0,0.1443]
[1763281758504,18.67080117,3211.1,3210.9,0.00854125]
[1763281758708,1.11789956,3211.0,3210.9,0.00854125]
[1763281760411,1.11789956,3211.0,3210.9,0.25174125]
[1763281760811,1.11789956,3211.0,3210.9,0.00854125]
[1763281767615,18.67080117,3211.1,3210.9,0.00854125]
[1763281769619,18.67080117,3211.1,3211.0,0.144]
[1763281770420,18.67080117,3211.1,3210.9,0.00854125]
[1763281772119,18.67080117,3211.1,3211.0,0.144]
[1763281774328,18.67080117,3211.1,3210.9,0.00854125]
[1763281774620,1.67800117,3211.0,3210.9,0.00854125]
[1763281775314,16.9928,3211.1,3210.9,0.00854125]
[1763281776429,16.9928,3211.1,3211.0,0.144]
[1763281778217,3.2078,3211.1,3211.0,0.375]
[1763281778423,19.37749728,3211.1,3211.0,0.375]
[1763281778822,4.32749728,3211.1,3211.0,0.375]
[1763281779020,18.75743667,3211.1,3211.0,0.375]
[1763281779527,18.75743667,3211.1,3211.0,0.144]
[1763281780225,17.63773939,3211.1,3211.0,0.144]
[1763281781325,17.63773939,3211.1,3211.0,0.375]
[1763281781716,17.63773939,3211.1,3211.0,0.144]
[1763281782429,14.804,3211.1,3211.0,0.375]
[1763281784130,15.92416767,3211.1,3211.0,0.375]
[1763281786233,14.804,3211.1,3211.0,0.375]
[1763281786734,15.92416767,3211.1,3211.0,0.375]
[1763281788226,14.804,3211.1,3211.0,0.375]
[1763281791237,14.804,3211.1,3211.0,0.144]
[1763281792627,14.804,3211.1,3211.0,0.375]
[1763281794640,14.804,3211.1,3211.0,0.144]
[1763281796043,15.92416767,3211.1,3211.0,0.144]
[1763281797345,14.804,3211.1,3211.0,0.375]
[1763281797643,4.05103975,3211.3,3211.2,0.231]
[1763281798346,0.84323975,3211.3,3211.2,0.231]
[1763281799037,0.00357328,3211.3,3211.2,0.231]
[1763281800234,3.714e-05,3211.5,3211.4,0.245]
[1763281800444,5.99015185,3212.5,3212.1,0.245]
[1763281800445,1.3598357,3212.2,3212.1,0.245]
[1763281800642,1.3598357,3212.2,3211.5,0.1372]
[1763281800643,0.235,3212.1,3211.5,0.1372]
[1763281801145,1.1248357,3212.2,3212.1,0.245]
[1763281801146,0.00466803,3212.2,3212.1,0.245]
[1763281801350,0.00382599,3212.2,3212.1,0.245]
[1763281802846,0.00382599,3212.2,3212.1,6.245]
[1763281803448,15.281,3213.0,3212.9,0.245]
[1763281803646,15.281,3213.0,3212.5,0.1372]
[1763281804351,15.28383244,3213.0,3212.9,0.245]
[1763281804545,15.04883244,3213.0,3212.9,0.245]
[1763281804945,15.28383244,3213.0,3212.9,0.245]
[1763281805253,15.28383244,3213.0,3212.5,0.1372]
[1763281807556,0.235,3212.6,3212.5,0.1372]
[1763281807748,0.235,3212.5,3212.4,3.21246803]
[1763281807948,0.235,3212.5,3212.4,3.45746803]
[1763281809648,0.235,3212.5,3212.4,3.21246803]
[1763281809846,0.235,3212.5,3212.4,3.45746803]
[1763281810959,15.04883244,3213.0,3212.5,0.1372]
[1763281813953,15.04883244,3213.0,3212.9,0.245]
[1763281814157,0.00283244,3213.0,3212.9,0.245]
[1763281815267,0.23503244,3213.0,3212.9,0.245]
[1763281816964,0.2322,3212.5,3212.4,0.00466803]
[1763281817558,0.3551,3212.5,3212.4,0.00466803]
[1763281818368,0.3504,3212.0,3211.9,3.2078]
[1763281819062,0.3504,3212.0,3211.5,3.5693]
[1763281819063,0.2322,3211.6,3211.5,3.5693]
[1763281820464,3.2078,3212.2,3211.5,3.5693]
[1763281820769,3.2078,3212.8,3212.5,0.148]
[1763281820959,0.2322,3212.6,3212.5,0.148]
[1763281821165,0.00283244,3213.0,3212.5,0.3723]
[1763281821457,0.00283244,3213.0,3212.9,0.2243]
[1763281822961,0.23503244,3213.0,3212.5,0.148]
[1763281823967,0.2322,3212.6,3212.5,0.3723]
[1763281824167,0.2322,3212.5,3212.4,3.2078]
[1763281826767,0.2322,3212.5,3212.0,0.148]
[1763281826973,0.2322,3212.0,3211.9,3.4321]
[1763281829181,3.2078,3212.5,3212.0,0.1396]
[1763281829476,0.2301,3212.0,3211.5,4.4635788]
[1763281829671,0.2301,3212.0,3211.5,3.345]
[1763281831373,0.2301,3212.0,3211.9,0.2487]
[1763281836180,0.2301,3212.0,3211.5,3.345]
[1763281836483,0.2301,3212.0,3211.9,0.2487]
[1763281837781,3.4379,3212.2,3212.1,0.2487]
[1763281838980,0.2301,3212.2,3212.1,0.2487]
[1763281839676,0.2301,3212.1,3212.0,0.3883]
[1763281841680,1.12016767,3212.4,3212.0,0.3883]
[1763281841983,3.4379,3212.5,3212.0,0.1396]
[1763281842683,3.4379,3212.5,3212.4,0.2487]
[1763281842881,3.2078,3212.5,3212.4,0.2487]
[1763281843084,3.4379,3212.5,3212.4,0.2487]
[1763281843477,0.2301,3212.1,3211.7,3.2078]
[1763281843676,4.32796767,3212.5,3212.0,0.3883]
[1763281844187,3.2078,3212.5,3212.0,0.3883]
[1763281844376,4.32796767,3212.5,3212.0,0.3883]
[1763281845186,0.2301,3212.1,3212.0,0.3883]
[1763281845483,4.32796767,3212.5,3212.0,0.3883]
[1763281845484,4.55806767,3212.5,3212.4,0.2487]
[1763281845786,3.2078,3212.5,3212.4,0.2487]
[1763281846384,5.7008,3212.9,3212.5,0.1396]
[1763281846584,3.2078,3212.9,3212.5,0.1396]
[1763281847085,3.4379,3212.9,3212.8,0.2487]
[1763281848287,3.2078,3212.9,3212.8,0.2487]
[1763281848489,0.00283244,3213.0,3212.9,0.2487]
[1763281853191,3.244e-05,3213.0,3212.9,0.2487]
[1763281853395,3.2078,3213.8,3213.7,0.2487]
[1763281854903,3.4379,3214.3,3214.2,0.2487]
[1763281855094,3.44078042,3214.3,3214.2,0.2487]
[1763281855696,0.2301,3213.8,3213.7,3.45966046]
[1763281856096,0.2301,3213.8,3213.7,3.21096046]
[1763281856297,0.2301,3213.8,3213.7,0.00316046]
[1763281856795,0.2301,3213.8,3213.7,0.25186046]
[1763281856995,0.2301,3213.8,3213.7,0.00316046]
[1763281857502,3.2078,3213.9,3213.7,0.00316046]
[1763281857503,4.33084809,3214.3,3213.8,0.2487]
[1763281857797,3.44078042,3214.3,3214.2,0.2487]
[1763281858705,0.2301,3214.1,3214.0,0.3883]
[1763281859007,0.2342,3213.8,3213.7,3.45086046]
[1763281859312,3.21068042,3214.3,3213.7,3.45086046]
[1763281859808,3.44488042,3214.3,3214.2,0.2399]
[1763281860312,0.2342,3214.1,3214.0,0.3872]
[1763281860908,3.44488042,3214.3,3214.2,0.2399]
[1763281861109,3.21068042,3214.3,3214.2,0.2399]
[1763281861304,0.00288042,3214.3,3214.2,0.2399]
[1763281861512,3.2078,3214.7,3214.5,0.3872]
[1763281862212,3.2078,3215.2,3214.5,0.3872]
[1763281862416,3.2078,3215.6,3215.1,0.2399]
[1763281863522,3.21148983,3215.6,3215.1,0.2399]
[1763281864915,0.2342,3215.1,3215.0,0.15196803]
[1763281865115,0.2342,3215.1,3215.0,0.00466803]
[1763281865309,0.2342,3215.1,3215.0,0.15196803]
[1763281865513,0.2342,3215.1,3215.0,0.39186803]
[1763281865913,0.2342,3215.1,3215.0,0.00466803]
[1763281866513,0.2342,3215.1,3215.0,0.39186803]
[1763281866718,3.442,3215.2,3215.1,0.2399]
[1763281867219,0.2342,3215.1,3215.0,0.15196803]
[1763281869728,0.2342,3215.1,3215.0,0.39186803]
[1763281878130,0.2342,3215.1,3215.0,0.00466803]
[1763281879333,1.06825252,3215.1,3215.0,0.00466803]
[1763281882126,4.27605252,3215.1,3215.0,0.00466803]
[1763281882331,3.442,3215.1,3215.0,0.00466803]
[1763281883236,4.56216767,3215.1,3215.0,0.00466803]
[1763281885942,4.04468221,3215.1,3215.0,0.38696803]
[1763281886127,3.2078,3215.1,3215.0,0.38696803]
[1763281886837,0.83688221,3215.2,3215.1,0.2332]
[1763281887034,0.83688221,3215.3,3215.2,0.2332]
[1763281887231,2.493,3215.4,3215.3,0.2332]
[1763281889131,3.85026767,3215.4,3215.3,0.2332]
[1763281889332,0.2268,3215.1,3215.0,0.23556803]
[1763281889632,0.1184,3214.5,3213.9,0.3717788]
[1763281889938,3.2078,3214.0,3213.0,0.1388]
[1763281890142,1.67737336,3213.1,3212.2,3.2078]
[1763281890338,0.83688976,3212.7,3212.2,3.2078]
[1763281890544,0.83688976,3212.8,3212.7,0.2309]
[1763281890744,0.84014145,3212.8,3212.7,0.23330193]
[1763281891145,0.84014145,3212.8,3212.7,0.00240193]
[1763281891341,0.00325169,3212.8,3212.7,0.23330193]
[1763281892638,3.2078,3213.3,3212.8,0.2309]
[1763281892849,15.87288976,3213.9,3213.8,0.2309]
[1763281893046,15.036,3213.9,3213.8,0.2309]
[1763281893546,0.83688976,3214.1,3214.0,0.3697]
[1763281893750,0.00381076,3214.1,3214.0,0.3697]
[1763281894055,3.2078,3214.2,3214.1,0.2309]
[1763281894256,0.00466803,3214.4,3214.3,0.2309]
[1763281895445,0.0069716,3214.4,3214.3,0.2309]
[1763281899249,3.2078,3215.0,3214.9,0.2309]
[1763281899449,0.83505505,3215.2,3215.1,0.2309]
[1763281900248,0.83852873,3215.2,3215.1,0.23438197]
[1763281900758,0.83852873,3215.2,3215.1,0.00348197]
[1763281908850,3.21127368,3215.2,3215.1,0.00348197]
[1763281915770,1.1193267,3215.2,3215.1,0.00348197]
[1763281916068,4.3271267,3215.2,3215.1,0.00348197]
[1763281917477,11.70427368,3215.2,3214.7,1.1181]
[1763281917681,3.2078,3214.8,3214.5,0.1388]
[1763281917965,16.14347557,3214.7,3214.5,0.1388]
[1763281918361,16.14347557,3214.7,3214.5,0.14193798]
[1763281918561,1.11447557,3214.7,3214.6,0.2309]
[1763281918766,4.32227557,3214.8,3214.7,0.2277]
[1763281918969,19.07469771,3214.8,3214.7,0.2277]
[1763281919270,18.2388,3214.8,3214.7,0.2277]
[1763281919674,19.07479513,3214.8,3214.7,0.2277]
[1763281920275,19.35327557,3214.8,3214.7,0.2277]
[1763281920778,19.35327557,3214.8,3214.5,0.14193798]
[1763281921071,0.83666168,3214.6,3214.5,0.14193798]
[1763281921276,1.11447557,3214.6,3214.5,0.14193798]
[1763281921867,1.11447557,3214.7,3214.6,0.2277]
[1763281922275,1.67170727,3214.7,3214.5,0.14193798]
[1763281922973,1.67170727,3214.7,3214.6,0.2277]
[1763281923480,18.2388,3214.8,3214.5,0.14193798]
[1763281923669,1.67895519,3214.6,3214.5,0.14193798]
[1763281924378,4.88675519,3214.8,3214.7,0.2277]
[1763281924575,19.92275519,3214.8,3214.7,0.2277]
[1763281925179,18.2438,3214.8,3214.7,0.2277]
[1763281927372,18.2438,3214.8,3214.5,0.14193798]
[1763281927568,1.67885504,3214.6,3214.5,0.00313798]
[1763281927774,2.23649782,3214.7,3214.5,0.14343798]
[1763281928481,2.23649782,3214.7,3214.5,0.00313798]
[1763281928781,2.23649782,3214.7,3214.5,0.14343798]
[1763281929384,2.23649782,3214.7,3214.3,1.6489]
[1763281929582,3.2078,3214.4,3214.3,1.6489]
[1763281929792,18.2438,3214.4,3214.3,1.6489]
[1763281930077,18.2438,3214.4,3214.0,0.14346803]
[1763281930279,2.23555158,3214.3,3213.6,3.2078]
[1763281930477,1.11772195,3213.7,3213.6,3.21042642]
[1763281930781,15.038,3213.7,3213.6,3.21042642]
[1763281931090,16.71458292,3213.7,3213.6,0.00262642]
[1763281931272,15.038,3213.7,3213.6,0.00262642]
[1763281931679,15.038,3213.7,3213.6,2.642e-05]
[1763281933274,1.6728261,3213.7,3213.6,2.642e-05]
[1763281933481,16.7128261,3213.7,3213.6,2.642e-05]
[1763281934181,15.04,3213.7,3213.6,2.642e-05]
[1763281935188,4.8806261,3213.8,3213.6,2.642e-05]
[1763281935383,3.2078,3213.8,3213.7,0.2277]
[1763281935574,17.2308,3213.8,3213.7,0.2277]
[1763281936390,0.83590745,3213.9,3213.8,0.2411]
[1763281936583,13.09890745,3213.9,3213.8,0.2411]
[1763281936984,12.263,3213.9,3213.8,0.2411]
[1763281938490,0.00466803,3214.0,3213.9,0.2411]
[1763281938690,0.83590745,3214.5,3214.2,0.2411]
[1763281938994,14.39570745,3214.7,3214.6,0.2411]
[1763281939588,13.5598,3214.7,3214.6,0.2411]
[1763281940285,14.39596194,3214.7,3214.5,0.1402]
[1763281943098,14.39596194,3214.7,3214.6,0.2411]
[1763281943292,0.83616194,3214.9,3214.6,0.2411]
[1763281943482,0.83616194,3214.9,3214.8,0.2411]
[1763281943682,14.19516194,3214.9,3214.8,0.2411]
[1763281946093,14.19516194,3214.9,3214.5,0.1402]
[1763281947998,14.19516194,3214.9,3214.8,0.2411]
[1763281948198,0.83616194,3214.9,3214.8,0.2411]
[1763281948497,15.87716194,3214.9,3214.8,0.2411]
[1763281948896,0.83616194,3214.9,3214.5,0.1402]
[1763281949198,15.87816194,3214.9,3214.5,0.1402]
[1763281951013,3.2078,3214.7,3214.5,0.1402]
[1763281951307,0.83616194,3214.6,3214.5,0.1402]
[1763281957215,1.11454326,3214.6,3214.5,0.1402]
[1763281958921,16.15554326,3214.6,3214.5,0.1402]
[1763281962221,18.2488,3214.6,3214.5,0.1402]
[1763281963226,18.2488,3214.6,3214.5,0.3651]
[1763281963227,0.83743514,3214.6,3214.5,0.3651]
[1763281963424,15.039,3214.6,3214.5,0.3651]
[1763281963721,0.83743514,3214.8,3214.7,0.2249]
[1763281963911,0.83743514,3214.9,3214.8,0.2249]
[1763281964115,13.09743514,3214.9,3214.8,0.2249]
[1763281964312,0.83743514,3214.9,3214.8,0.2249]
[1763281964720,12.26,3214.9,3214.8,0.2249]
[1763281965122,13.09743514,3214.9,3214.8,0.2249]
[1763281965518,15.87643514,3214.9,3214.8,0.2249]
[1763281965920,0.83743514,3214.9,3214.8,0.2249]
[1763281966121,15.87643514,3214.9,3214.8,0.2249]
[1763281966321,15.87643514,3214.9,3214.5,0.1402]
[1763281966522,0.83743514,3214.7,3214.5,0.1402]
[1763281966725,0.83743514,3214.6,3214.5,0.1402]
[1763281967027,1.116168,3214.6,3214.5,0.1402]
[1763281967433,1.116168,3214.7,3214.5,0.3651]
[1763281967634,1.116168,3214.7,3214.6,0.2249]
[1763281968221,1.6728261,3214.8,3214.6,0.2249]
[1763281969133,1.6728261,3214.8,3214.5,0.1402]
[1763281969331,1.11869301,3214.6,3214.5,0.1402]
[1763281970934,4.32649301,3214.6,3214.5,0.1402]
[1763281971128,4.32649301,3214.6,3214.5,0.3651]
[1763281973728,15.04,3214.6,3214.5,0.3651]
[1763281974126,1.11869301,3214.7,3214.6,0.2249]
[1763281974325,16.15769301,3214.7,3214.6,0.2249]
[1763281975524,1.11869301,3214.7,3214.6,0.2249]
[1763281975728,16.15969301,3214.7,3214.6,0.2249]
[1763281975935,16.15969301,3214.7,3214.5,0.1402]
[1763281976124,1.11869301,3214.6,3214.5,0.1402]
[1763281977135,1.11869301,3214.6,3214.5,0.3651]
[1763281977334,16.15969301,3214.7,3214.6,0.2249]
[1763281979939,1.11869301,3214.7,3214.6,0.2249]
[1763281980140,16.15969301,3214.7,3214.6,0.2249]
[1763281981241,1.11869301,3214.7,3214.6,0.2249]
[1763281981540,15.039,3214.7,3214.6,0.2304]
[1763281982035,1.11869301,3214.9,3214.7,0.2304]
[1763281982240,0.83898292,3215.0,3214.9,0.2304]
[1763281987636,0.83898292,3215.0,3214.5,0.1402]
[1763281987836,0.83898292,3214.9,3214.5,0.1402]
[1763281988136,15.039,3214.8,3214.7,0.2304]
[1763281989748,15.87898292,3214.9,3214.8,0.2304]
[1763281992743,0.83898292,3215.0,3214.8,0.2304]
[1763281993047,10.12798292,3215.0,3214.9,0.2304]
[1763281993745,1.67629978,3215.2,3215.0,0.139]
[1763281993948,15.039,3215.1,3215.0,0.139]
[1763281995348,15.039,3215.1,3215.0,0.3715]
[1763281998649,15.039,3215.1,3215.0,0.139]
[1763282003756,15.039,3215.1,3214.5,3.348]
[1763282004054,0.83881771,3214.6,3214.5,3.348]
[1763282004353,15.87181771,3214.6,3214.5,3.5805]
[1763282007155,15.033,3214.6,3214.5,3.5805]
[1763282007853,15.87211547,3214.6,3214.5,3.5805]
[1763282008252,15.033,3214.6,3214.5,3.5805]
[1763282008752,15.032,3214.6,3214.5,3.5805]
[1763282008955,15.031,3214.6,3214.5,3.5805]
[1763282009656,15.87021201,3214.6,3214.5,3.5805]
[1763282011058,0.83921201,3214.6,3214.5,3.5805]
[1763282011961,0.83921201,3214.6,3214.5,3.348]
[1763282012459,0.83921201,3214.6,3214.5,3.5786]
[1763282013957,15.86921201,3214.6,3214.5,3.5786]
[1763282014358,0.83921201,3214.6,3214.5,3.5786]
[1763282014553,15.86921201,3214.6,3214.5,3.5786]
[1763282018463,15.03,3214.6,3214.5,3.5786]
[1763282021164,15.86924702,3214.6,3214.5,3.5786]
[1763282022666,15.03,3214.6,3214.5,3.5786]
[1763282023363,15.03,3214.6,3214.5,0.3708]
[1763282023758,15.03,3214.6,3214.5,0.1402]
[1763282028274,18.2378,3214.6,3214.0,3.348]
[1763282028574,0.83909818,3214.1,3214.0,3.348]
[1763282028782,16.70819637,3214.1,3213.6,3.20782642]
[1763282029080,0.83898169,3213.7,3213.6,3.20782642]
[1763282029280,15.03,3213.7,3213.6,3.20782642]
[1763282030272,16.1467062,3213.7,3213.6,3.20782642]
[1763282031275,15.03,3213.7,3213.6,3.20782642]
[1763282031481,15.03,3213.7,3213.6,2.642e-05]
[1763282033284,15.86642446,3213.7,3213.6,2.642e-05]
[1763282033883,16.1467062,3213.7,3213.6,2.642e-05]
[1763282034277,15.03,3213.7,3213.6,2.642e-05]
[1763282035780,15.86572824,3213.7,3213.6,0.23062642]
[1763282036280,15.86572824,3213.7,3213.6,2.642e-05]
[1763282037989,0.83572824,3213.7,3213.6,0.23062642]
[1763282038187,0.83572824,3213.9,3213.7,0.2306]
[1763282038394,12.221,3213.8,3213.6,2.642e-05]
[1763282040694,12.221,3213.8,3213.7,0.2244]
[1763282041096,0.83572824,3214.1,3213.7,0.2244]
[1763282041393,11.129,3214.0,3213.7,0.2244]
[1763282041594,11.129,3214.0,3213.6,2.642e-05]
[1763282041791,0.83572824,3214.1,3213.6,2.642e-05]
[1763282041985,10.832,3214.0,3213.6,2.642e-05]
[1763282042495,0.83572824,3214.1,3214.0,0.1495]
[1763282042696,15.86872824,3214.1,3214.0,0.1495]
[1763282042899,0.83572824,3214.1,3214.0,0.1495]
[1763282043100,0.83572824,3214.5,3214.4,0.2244]
[1763282043401,18.2408,3214.6,3214.5,0.3739]
[1763282043898,15.033,3214.6,3214.5,0.3739]
[1763282045091,3.2078,3215.0,3214.9,0.2244]
[1763282045293,16.5018,3215.0,3214.9,0.2244]
[1763282046390,16.5018,3215.0,3214.5,0.1495]
[1763282051402,3.2078,3215.0,3214.5,0.1495]
[1763282051607,12.9798,3215.0,3214.9,0.2244]
[1763282052198,0.83920192,3215.2,3215.1,0.2244]
[1763282052199,0.00347368,3215.2,3215.1,0.2244]
[1763282052392,0.00347368,3215.2,3215.0,0.1495]
[1763282053501,0.00347368,3215.2,3215.1,0.2244]
[1763282054013,0.00347368,3215.2,3215.0,0.1495]
[1763282055205,0.00347368,3215.2,3215.1,0.2333]
[1763282057199,0.00347368,3215.2,3215.0,0.1495]
[1763282063510,0.00347368,3215.2,3215.1,0.2333]
[1763282064311,0.00347368,3215.2,3215.0,0.1495]
[1763282065816,0.00347368,3215.2,3215.1,0.2333]
[1763282066416,0.00347368,3215.2,3215.0,0.1495]
[1763282066715,0.00347368,3215.2,3215.1,0.2333]
[1763282068610,0.83920192,3215.2,3215.0,0.1495]
[1763282068814,1.1167062,3215.1,3214.6,3.2078]
[1763282069023,0.83646572,3214.9,3214.6,3.2078]
[1763282069709,0.83646572,3214.9,3214.5,0.1495]
[1763282069915,0.83646572,3214.7,3214.5,0.1495]
[1763282070111,15.027,3214.6,3214.5,0.1495]
[1763282070919,15.027,3214.6,3214.5,0.3889]
[1763282071304,15.8641476,3214.6,3214.5,0.3889]
[1763282072316,15.027,3214.6,3214.5,0.3889]
[1763282073320,16.1437062,3214.6,3214.5,0.3889]